fUST/lending_fUST_20240109
["ID","MTS","AMOUNT","RATE_DAILY","PERIOD"]
[310882785,1704768643985,-500.0,0.0003589,2]
[310882786,1704768643994,-500.0,0.0003589,2]
[310882787,1704768644003,-506.3721158,0.0003589,2]
[310882788,1704768644012,-500.0,0.0003589,2]
[310882789,1704768644021,-500.0,0.0003589,2]
[310882790,1704768644030,-612.3960019,0.0003589,2]
[310882791,1704768644039,-453.87475052,0.0003589,2]
[310882792,1704768644048,-502.54561137,0.0003589,2]
[310882793,1704768644057,-500.0,0.0003589,2]
[310882794,1704768644066,-500.0,0.0003589,2]
[310882795,1704768644075,-500.0,0.0003589,2]
[310882796,1704768644085,-500.0,0.0003589,2]
[310882797,1704768644094,-500.0,0.0003589,2]
[310882798,1704768644103,-501.17826582,0.0003589,2]
[310882799,1704768644112,-537.74750855,0.0003589,2]
[310882800,1704768644121,-500.0,0.0003589,2]
[310882801,1704768644129,-322.50728838,0.0003589,2]
[310882802,1704768644138,-500.0,0.0003589,2]
[310882803,1704768644148,-500.0,0.0003589,2]
[310882804,1704768644156,-500.0,0.0003589,2]
[310882805,1704768644166,-500.0,0.0003589,2]
[310882806,1704768644174,-500.0,0.0003589,2]
[310882807,1704768644183,-500.0,0.0003589,2]
[310882808,1704768644192,-500.0,0.0003589,2]
[310882809,1704768644201,-500.0,0.0003589,2]
[310882810,1704768644210,-500.0,0.0003589,2]
[310882811,1704768644219,-500.0,0.0003589,2]
[310882812,1704768644228,-549.71,0.0003589,2]
[310882813,1704768644237,-504.3072652,0.0003589,2]
[310882814,1704768644247,-500.0,0.0003589,2]
[310882815,1704768644256,-1252.35,0.0003589,2]
[310882816,1704768644265,-500.0,0.0003589,2]
[310882817,1704768644274,-500.0,0.0003589,2]
[310882818,1704768644283,-500.0,0.0003589,2]
[310882819,1704768644292,-588.40848288,0.0003589,2]
[310882820,1704768644302,-500.0,0.0003589,2]
[310882821,1704768644311,-500.0,0.0003589,2]
[310882822,1704768644321,-500.0,0.0003589,2]
[310882823,1704768644331,-500.0,0.0003589,2]
[310882824,1704768644340,-500.0,0.0003589,2]
[310882825,1704768644349,-500.0,0.0003589,2]
[310882826,1704768644360,-3214.85,0.0003589,2]
[310882827,1704768644370,-500.0,0.0003589,2]
[310882828,1704768644378,-500.0,0.0003589,2]
[310882829,1704768644389,-500.0,0.0003589,2]
[310882830,1704768644398,-500.0,0.0003589,2]
[310882831,1704768644409,-770.26,0.0003589,2]
[310882832,1704768644419,-500.0,0.0003589,2]
[310882833,1704768644428,-500.0,0.0003589,2]
[310882834,1704768644438,-500.0,0.0003589,2]
[310882835,1704768644448,-500.0,0.0003589,2]
[310882836,1704768644459,-500.0,0.0003589,2]
[310882837,1704768644468,-500.0,0.0003589,2]
[310882838,1704768644477,-500.0,0.0003589,2]
[310882839,1704768644486,-500.0,0.0003589,2]
[310882840,1704768644495,-500.0,0.0003589,2]
[310882841,1704768644504,-500.0,0.0003589,2]
[310882842,1704768644513,-500.0,0.0003589,2]
[310882843,1704768644523,-1758.55,0.0003589,2]
[310882844,1704768644533,-500.0,0.0003589,2]
[310882845,1704768644544,-500.0,0.0003589,2]
[310882846,1704768644554,-1406.21,0.0003589,2]
[310882847,1704768644564,-500.0,0.0003589,2]
[310882848,1704768644573,-500.0,0.0003589,2]
[310882849,1704768644583,-500.0,0.0003589,2]
[310882850,1704768644688,-500.0,0.0003589,2]
[310882851,1704768644700,-609.81,0.0003589,2]
[310882852,1704768644710,-532.93123084,0.0003589,2]
[310882853,1704768644719,-500.0,0.0003589,2]
[310882854,1704768644728,-500.0,0.0003589,2]
[310882855,1704768644737,-500.0,0.0003589,2]
[310882856,1704768644746,-500.0,0.0003589,2]
[310882857,1704768644754,-546.68225328,0.0003589,2]
[310882858,1704768644763,-500.0,0.0003589,2]
[310882859,1704768644773,-500.0,0.0003589,2]
[310882860,1704768644782,-500.0,0.0003589,2]
[310882861,1704768644791,-516.51757613,0.0003589,2]
[310882862,1704768644800,-505.56430784,0.0003589,2]
[310882863,1704768644810,-500.0,0.0003589,2]
[310882864,1704768644822,-424.19971839,0.0003589,2]
[310882865,1704768644832,-268.25266853,0.0003589,2]
[310882866,1704768644841,-500.0,0.0003589,2]
[310882867,1704768644851,-500.0,0.0003589,2]
[310882868,1704768644860,-226.27349157,0.0003589,2]
[310882869,1704768644870,-507.12889787,0.0003589,2]
[310882870,1704768644879,-500.0,0.0003589,2]
[310882871,1704768644888,-500.96582501,0.0003589,2]
[310882872,1704768644897,-500.0,0.0003589,2]
[310882873,1704768644906,-604.00242649,0.0003589,2]
[310882874,1704768644915,-500.0,0.0003589,2]
[310882875,1704768644925,-1106.28,0.0003589,2]
[310882876,1704768644934,-1176.18,0.0003589,2]
[310882877,1704768644943,-563.62061951,0.0003589,2]
[310882878,1704768644952,-528.85115865,0.0003589,2]
[310882879,1704768644962,-500.0,0.0003589,2]
[310882880,1704768644971,-593.02653868,0.0003589,2]
[310882881,1704768644981,-504.17246542,0.0003589,2]
[310882882,1704768644990,-500.0,0.0003589,2]
[310882883,1704768644999,-506.88634979,0.0003589,2]
[310882884,1704768645008,-226.74535197,0.0003589,2]
[310882885,1704768645018,-500.0,0.0003589,2]
[310882886,1704768645026,-500.0,0.0003589,2]
[310882887,1704768645035,-500.0,0.0003589,2]
[310882888,1704768645044,-500.0,0.0003589,2]
[310882889,1704768645054,-500.0,0.0003589,2]
[310882890,1704768645063,-500.0,0.0003589,2]
[310882891,1704768645072,-500.0,0.0003589,2]
[310882892,1704768645081,-502.03444066,0.0003589,2]
[310882893,1704768645090,-500.0,0.0003589,2]
[310882894,1704768645099,-500.0,0.0003589,2]
[310882895,1704768645108,-500.0,0.0003589,2]
[310882896,1704768645117,-523.96387343,0.0003589,2]
[310882897,1704768645127,-532.42179893,0.0003589,2]
[310882898,1704768645136,-567.99462303,0.0003589,2]
[310882899,1704768645145,-500.0,0.0003589,2]
[310882900,1704768645154,-500.0,0.0003589,2]
[310882901,1704768645163,-853.36,0.0003589,2]
[310882902,1704768645172,-500.0,0.0003589,2]
[310882903,1704768645181,-500.0,0.0003589,2]
[310882904,1704768645190,-501.10069018,0.0003589,2]
[310882905,1704768645198,-1163.46,0.0003589,2]
[310882906,1704768645207,-500.0,0.0003589,2]
[310882907,1704768645216,-501.93939371,0.0003589,2]
[310882908,1704768645225,-500.0,0.0003589,2]
[310882909,1704768645234,-2401.08,0.0003589,2]
[310882910,1704768645243,-598.01736751,0.0003589,2]
[310882911,1704768645253,-507.21352278,0.0003589,2]
[310882912,1704768645262,-5371.74,0.0003589,2]
[310882913,1704768645271,-500.0,0.0003589,2]
[310882914,1704768645281,-500.0,0.0003589,2]
[310882915,1704768645290,-500.0,0.0003589,2]
[310882916,1704768645299,-193.63327634,0.0003589,2]
[310882917,1704768645308,-500.0,0.0003589,2]
[310882918,1704768645317,-2790.05,0.0003589,2]
[310882919,1704768645327,-500.0,0.0003589,2]
[310882920,1704768645336,-500.0,0.0003589,2]
[310882921,1704768645345,-972.77,0.0003589,2]
[310882922,1704768645354,-286.75818751,0.0003589,2]
[310882923,1704768645363,-797.74,0.0003589,2]
[310882924,1704768645373,-500.0,0.0003589,2]
[310882925,1704768645382,-500.0,0.0003589,2]
[310882926,1704768645392,-1316.75,0.0003589,2]
[310882927,1704768645402,-500.0,0.0003589,2]
[310882928,1704768645411,-500.0,0.0003589,2]
[310882929,1704768645420,-674.79,0.0003589,2]
[310882930,1704768645429,-500.0,0.0003589,2]
[310882931,1704768645438,-2007.13,0.0003589,2]
[310882932,1704768645448,-500.0,0.0003589,2]
[310882933,1704768645457,-500.0,0.0003589,2]
[310882934,1704768645466,-500.0,0.0003589,2]
[310882935,1704768645475,-500.0,0.0003589,2]
[310882936,1704768645485,-301.46056639,0.0003589,2]
[310882937,1704768645494,-1370.36,0.0003589,2]
[310882938,1704768645503,-500.0,0.0003589,2]
[310882939,1704768645512,-500.0,0.0003589,2]
[310882940,1704768645521,-500.0,0.0003589,2]
[310882941,1704768645530,-362.47033602,0.0003589,2]
[310882942,1704768645539,-500.0,0.0003589,2]
[310882943,1704768645548,-500.0,0.0003589,2]
[310882944,1704768645557,-5713.43,0.0003589,2]
[310882945,1704768645566,-545.93280245,0.0003589,2]
[310882946,1704768645575,-500.0,0.0003589,2]
[310882947,1704768645584,-261.85210161,0.0003589,2]
[310882948,1704768645593,-48107.56,0.0003589,2]
[310882949,1704768645602,-500.0,0.0003589,2]
[310882950,1704768645611,-500.0,0.0003589,2]
[310882951,1704768645621,-313.45672776,0.0003589,2]
[310882952,1704768645630,-500.0,0.0003589,2]
[310882953,1704768645638,-500.0,0.0003589,2]
[310882954,1704768645647,-500.0,0.0003589,2]
[310882955,1704768645656,-1654.94,0.0003589,2]
[310882956,1704768645666,-500.0,0.0003589,2]
[310882957,1704768645675,-500.0,0.0003589,2]
[310882958,1704768645684,-500.0,0.0003589,2]
[310882959,1704768645693,-500.0,0.0003589,5]
[310882960,1704768645702,-500.0,0.0003589,2]
[310882961,1704768645710,-588.83,0.0003589,2]
[310882962,1704768645719,-500.0,0.0003589,2]
[310882963,1704768645728,-13892.66,0.0003589,2]
[310882964,1704768645738,-500.0,0.0003589,2]
[310882965,1704768645747,-500.0,0.0003589,2]
[310882966,1704768645755,-500.0,0.0003589,2]
[310882967,1704768645764,-1961.83,0.0003589,2]
[310882968,1704768645773,-2101.5,0.0003589,2]
[310882969,1704768645784,-500.0,0.0003589,2]
[310882970,1704768645794,-500.0,0.0003589,2]
[310882971,1704768645804,-500.0,0.0003589,2]
[310882972,1704768645817,-500.0,0.0003589,2]
[310882973,1704768645827,-500.0,0.0003589,2]
[310882974,1704768645837,-2422.78,0.0003589,2]
[310882975,1704768645848,-500.0,0.0003589,2]
[310882976,1704768645857,-500.0,0.0003589,2]
[310882977,1704768645867,-500.0,0.0003589,2]
[310882978,1704768645877,-573.64327184,0.0003589,2]
[310882979,1704768645886,-500.0,0.0003589,2]
[310882980,1704768645895,-297.81679147,0.0003589,2]
[310882981,1704768645905,-1000.0,0.0003589,2]
[310882982,1704768645913,-204.85076196,0.0003589,2]
[310882983,1704768645922,-500.0,0.0003589,2]
[310882984,1704768645931,-500.0,0.0003589,2]
[310882985,1704768645940,-500.0,0.0003589,2]
[310882986,1704768645949,-1343.37,0.0003589,2]
[310882987,1704768645958,-500.0,0.0003589,2]
[310882988,1704768645968,-500.0,0.0003589,2]
[310882990,1704768645977,-622.76,0.0003589,2]
[310882992,1704768645987,-646.97,0.0003589,2]
[310882993,1704768645996,-1234.65,0.0003589,2]
[310882994,1704768646006,-500.0,0.0003589,2]
[310882995,1704768646016,-500.0,0.0003589,2]
[310882996,1704768646026,-510.0357936,0.0003589,2]
[310882997,1704768646038,-500.0,0.0003589,2]
[310882998,1704768646047,-500.0,0.0003589,2]
[310882999,1704768646057,-1790.81,0.0003589,2]
[310883000,1704768646067,-500.0,0.0003589,2]
[310883001,1704768646076,-501.70341923,0.0003589,2]
[310883002,1704768646085,-544.05267978,0.0003589,2]
[310883003,1704768646095,-458.19560435,0.0003589,2]
[310883004,1704768646104,-500.0,0.0003589,2]
[310883005,1704768646113,-518.76104554,0.0003589,2]
[310883006,1704768646122,-970.89,0.0003589,2]
[310883007,1704768646132,-500.0,0.0003589,2]
[310883008,1704768646142,-500.0,0.0003589,2]
[310883009,1704768646151,-500.0,0.0003589,2]
[310883010,1704768646160,-500.0,0.0003589,2]
[310883011,1704768646170,-500.0,0.0003589,2]
[310883012,1704768646179,-500.0,0.0003589,2]
[310883013,1704768646188,-500.0,0.0003589,2]
[310883014,1704768646198,-151.0,0.0003589,2]
[310883015,1704768646207,-199.286319,0.0003589,2]
[310883016,1704768646216,-199.286319,0.0003589,2]
[310883017,1704768646227,-230.25509034,0.00036,4]
[310883018,1704768646236,-156.1230049,0.00036,2]
[310883019,1704768646245,-500.0,0.00036,7]
[310883020,1704768646254,-56862.0,0.00036,2]
[310883021,1704768646263,-151.0,0.00036,2]
[310883022,1704768646273,-3979.621872,0.00036,2]
[310883023,1704768646282,-654.0,0.00036,7]
[310883024,1704768646291,-199.286319,0.00036,2]
[310883025,1704768646300,-199.286319,0.00036,2]
[310883026,1704768646309,-3509.9844024,0.00036,10]
[310883027,1704768646319,-2000.0,0.00036082,2]
[310883028,1704768646328,-160.0,0.00036163,10]
[310883029,1704768646338,-167.46226827,0.00036163,10]
[310883030,1704768646347,-500.0,0.00036164,2]
[310883031,1704768646356,-500.0,0.00036164,2]
[310883032,1704768646365,-500.0,0.00036164,2]
[310883033,1704768646374,-500.0,0.00036164,2]
[310883034,1704768646384,-500.0,0.00036164,2]
[310883035,1704768646393,-472.20224125,0.00036164,2]
[310883036,1704768646402,-500.0,0.00036164,2]
[310883037,1704768646411,-500.0,0.00036164,2]
[310883038,1704768646420,-500.0,0.00036164,2]
[310883039,1704768646430,-500.0,0.00036164,2]
[310883040,1704768646439,-500.0,0.00036164,2]
[310883041,1704768646448,-500.0,0.00036164,2]
[310883042,1704768646458,-501.69479596,0.00036164,2]
[310883043,1704768646467,-500.0,0.00036164,2]
[310883044,1704768646476,-500.0,0.00036164,2]
[310883045,1704768646486,-500.0,0.00036164,2]
[310883046,1704768646495,-500.0,0.00036164,2]
[310883047,1704768646504,-500.0,0.00036164,2]
[310883048,1704768646514,-500.0,0.00036164,2]
[310883049,1704768646523,-500.0,0.00036164,2]
[310883050,1704768646532,-500.0,0.00036164,2]
[310883051,1704768646542,-500.0,0.00036164,2]
[310883052,1704768646551,-500.0,0.00036164,2]
[310883053,1704768646559,-549.71,0.00036164,2]
[310883054,1704768646569,-500.0,0.00036164,2]
[310883055,1704768646578,-1252.35,0.00036164,2]
[310883056,1704768646588,-500.0,0.00036164,2]
[310883057,1704768646597,-500.0,0.00036164,2]
[310883058,1704768646607,-500.0,0.00036164,2]
[310883059,1704768646616,-500.0,0.00036164,2]
[310883060,1704768646627,-464.50213809,0.00036164,2]
[310883061,1704768646636,-500.0,0.00036164,2]
[310883062,1704768646646,-500.0,0.00036164,2]
[310883063,1704768646655,-500.0,0.00036164,2]
[310883064,1704768646664,-500.0,0.00036164,2]
[310883065,1704768646673,-3214.85,0.00036164,2]
[310883066,1704768646682,-500.0,0.00036164,2]
[310883067,1704768646691,-500.0,0.00036164,2]
[310883068,1704768646700,-500.0,0.00036164,2]
[310883069,1704768646709,-504.39277923,0.00036164,2]
[310883070,1704768646718,-770.26,0.00036164,2]
[310883071,1704768646727,-500.0,0.00036164,2]
[310883072,1704768646736,-500.0,0.00036164,2]
[310883073,1704768646746,-500.0,0.00036164,2]
[310883074,1704768646755,-500.0,0.00036164,2]
[310883075,1704768646764,-500.0,0.00036164,2]
[310883076,1704768646773,-500.0,0.00036164,2]
[310883077,1704768646782,-500.0,0.00036164,2]
[310883078,1704768646792,-219.1962103,0.00036164,2]
[310883079,1704768646801,-500.0,0.00036164,2]
[310883080,1704768646812,-500.0,0.00036164,2]
[310883081,1704768646824,-1758.55,0.00036164,2]
[310883082,1704768646834,-500.0,0.00036164,2]
[310883083,1704768646844,-500.0,0.00036164,2]
[310883084,1704768646855,-1406.21,0.00036164,2]
[310883085,1704768646864,-500.0,0.00036164,2]
[310883086,1704768646873,-500.0,0.00036164,2]
[310883087,1704768646882,-500.0,0.00036164,2]
[310883088,1704768646891,-500.0,0.00036164,2]
[310883089,1704768646900,-609.81,0.00036164,2]
[310883090,1704768646909,-579.20844571,0.00036164,2]
[310883091,1704768646918,-500.0,0.00036164,2]
[310883092,1704768646927,-500.0,0.00036164,2]
[310883093,1704768646936,-500.0,0.00036164,2]
[310883094,1704768646945,-500.0,0.00036164,2]
[310883095,1704768646955,-500.0,0.00036164,2]
[310883096,1704768646964,-500.0,0.00036164,2]
[310883097,1704768646973,-503.42336676,0.00036164,2]
[310883098,1704768647063,-500.0,0.00036164,2]
[310883099,1704768647083,-500.0,0.00036164,2]
[310883100,1704768647092,-1106.28,0.00036164,2]
[310883101,1704768647101,-1176.18,0.00036164,2]
[310883102,1704768647111,-500.0,0.00036164,2]
[310883103,1704768647120,-500.0,0.00036164,2]
[310883104,1704768647129,-266.61540679,0.00036164,2]
[310883105,1704768647138,-500.0,0.00036164,2]
[310883106,1704768647147,-500.0,0.00036164,2]
[310883107,1704768647156,-500.0,0.00036164,2]
[310883108,1704768647165,-507.18325789,0.00036164,2]
[310883109,1704768647174,-500.0,0.00036164,2]
[310883110,1704768647183,-500.0,0.00036164,2]
[310883111,1704768647193,-500.0,0.00036164,2]
[310883112,1704768647202,-500.0,0.00036164,2]
[310883113,1704768647211,-500.0,0.00036164,2]
[310883114,1704768647220,-500.0,0.00036164,2]
[310883115,1704768647229,-500.0,0.00036164,2]
[310883116,1704768647238,-853.36,0.00036164,2]
[310883117,1704768647247,-176.67995939,0.00036164,2]
[310883118,1704768647257,-500.0,0.00036164,2]
[310883119,1704768647266,-502.10836974,0.00036164,2]
[310883120,1704768647275,-1163.46,0.00036164,2]
[310883121,1704768647285,-500.0,0.00036164,2]
[310883122,1704768647294,-2401.08,0.00036164,2]
[310883123,1704768647304,-5371.74,0.00036164,2]
[310883124,1704768647313,-500.0,0.00036164,2]
[310883125,1704768647322,-500.0,0.00036164,2]
[310883126,1704768647331,-500.0,0.00036164,2]
[310883127,1704768647340,-500.0,0.00036164,2]
[310883128,1704768647350,-2790.05,0.00036164,2]
[310883129,1704768647360,-500.0,0.00036164,2]
[310883130,1704768647369,-502.89657814,0.00036164,2]
[310883131,1704768647379,-972.77,0.00036164,2]
[310883132,1704768647387,-797.74,0.00036164,2]
[310883133,1704768647397,-520.07099827,0.00036164,2]
[310883134,1704768647406,-511.62937884,0.00036164,2]
[310883135,1704768647416,-1316.75,0.00036164,2]
[310883136,1704768647425,-500.0,0.00036164,2]
[310883137,1704768647435,-500.0,0.00036164,2]
[310883138,1704768647445,-674.79,0.00036164,2]
[310883139,1704768647454,-504.80116361,0.00036164,2]
[310883140,1704768647464,-2007.13,0.00036164,2]
[310883141,1704768647473,-500.0,0.00036164,2]
[310883142,1704768647482,-500.0,0.00036164,2]
[310883143,1704768647491,-500.0,0.00036164,2]
[310883144,1704768647503,-500.0,0.00036164,2]
[310883145,1704768647513,-1370.36,0.00036164,2]
[310883146,1704768647522,-500.0,0.00036164,2]
[310883147,1704768647531,-500.0,0.00036164,2]
[310883148,1704768647540,-500.0,0.00036164,2]
[310883149,1704768647549,-500.0,0.00036164,2]
[310883150,1704768647558,-5713.43,0.00036164,2]
[310883151,1704768647567,-506.32052595,0.00036164,2]
[310883152,1704768647576,-48107.56,0.00036164,2]
[310883153,1704768647586,-514.68539506,0.00036164,2]
[310883154,1704768647596,-500.0,0.00036164,2]
[310883155,1704768647605,-552.78766617,0.00036164,2]
[310883156,1704768647615,-572.89036176,0.00036164,2]
[310883157,1704768647624,-626.10530072,0.00036164,2]
[310883158,1704768647635,-1654.94,0.00036164,2]
[310883159,1704768647645,-500.0,0.00036164,2]
[310883160,1704768647654,-500.0,0.00036164,2]
[310883161,1704768647663,-506.60874421,0.00036164,2]
[310883162,1704768647672,-500.0,0.00036164,5]
[310883163,1704768647681,-500.0,0.00036164,2]
[310883164,1704768647691,-500.0,0.00036164,2]
[310883165,1704768647700,-588.83,0.00036164,2]
[310883166,1704768647709,-13892.66,0.00036164,2]
[310883167,1704768647718,-500.0,0.00036164,2]
[310883168,1704768647727,-500.0,0.00036164,2]
[310883169,1704768647736,-500.0,0.00036164,2]
[310883170,1704768647746,-1961.83,0.00036164,2]
[310883171,1704768647755,-2101.5,0.00036164,2]
[310883172,1704768647764,-428.60163352,0.00036164,2]
[310883173,1704768647913,-71.39836648,0.00036164,2]
[310883174,1704768647922,-574.77610086,0.00036164,2]
[310883175,1704768647931,-500.0,0.00036164,2]
[310883176,1704768647940,-500.0,0.00036164,2]
[310883177,1704768647950,-500.0,0.00036164,2]
[310883178,1704768647959,-1511.26186863,0.00036164,2]
[310883179,1704768647970,-911.51813137,0.00036164,2]
[310883180,1704768647979,-500.0,0.00036164,2]
[310883181,1704768647988,-500.0,0.00036164,2]
[310883182,1704768647997,-510.59717459,0.00036164,2]
[310883183,1704768648006,-500.0,0.00036164,2]
[310883184,1704768648015,-1000.0,0.00036164,2]
[310883185,1704768648025,-500.0,0.00036164,2]
[310883186,1704768648034,-500.0,0.00036164,2]
[310883187,1704768648044,-500.0,0.00036164,2]
[310883188,1704768648053,-1343.37,0.00036164,2]
[310883189,1704768648063,-500.0,0.00036164,2]
[310883190,1704768648072,-500.0,0.00036164,2]
[310883191,1704768648081,-622.76,0.00036164,2]
[310883192,1704768648090,-646.97,0.00036164,2]
[310883193,1704768648099,-1234.65,0.00036164,2]
[310883194,1704768648109,-500.0,0.00036164,2]
[310883195,1704768648118,-500.0,0.00036164,2]
[310883196,1704768648128,-502.19389587,0.00036164,2]
[310883197,1704768648138,-500.0,0.00036164,2]
[310883198,1704768648148,-1790.81,0.00036164,2]
[310883199,1704768648158,-500.0,0.00036164,2]
[310883200,1704768648167,-500.0,0.00036164,2]
[310883201,1704768648176,-970.89,0.00036164,2]
[310883202,1704768648186,-623.70359555,0.00036164,2]
[310883203,1704768648195,-578.75542968,0.00036164,2]
[310883204,1704768648204,-500.0,0.00036164,2]
[310883205,1704768648213,-500.0,0.00036164,2]
[310883206,1704768648222,-500.0,0.00036164,2]
[310883207,1704768648231,-500.0,0.00036164,2]
[310883208,1704768648240,-151.0,0.00036164,2]
[310883209,1704768648249,-199.286319,0.00036164,2]
[310883210,1704768648259,-199.286319,0.00036164,2]
[310883211,1704768648269,-1515.72,0.000362,7]
[310883212,1704768648278,-511.39258584,0.00036358,7]
[310883213,1704768648288,-16.46007731,0.00036359,2]
[310883214,1704768648298,-1373.63850537,0.00036359,4]
[310883215,1704768648308,-300.0,0.00036359,4]
[310883216,1704768648318,-1987.79693102,0.00036359,4]
[310883217,1704768648328,-1777.1942946,0.00036359,4]
[310883218,1704768648337,-649.46848965,0.00036359,4]
[310883219,1704768648346,-1025.4344042,0.00036359,2]
[310883220,1704768648355,-2447.20731288,0.00036359,2]
[310883221,1704768648366,-409.69324898,0.00036359,2]
[310883222,1704768648377,-200.0,0.00036359,2]
[310883223,1704768648387,-2372.33614082,0.00036359,2]
[310883224,1704768648396,-2372.33614082,0.00036359,2]
[310883225,1704768648405,-2372.33614082,0.00036359,2]
[310883226,1704768648414,-2372.33614082,0.00036359,2]
[310883227,1704768648423,-2372.33614082,0.00036359,2]
[310883228,1704768648432,-2372.33614082,0.00036359,2]
[310883229,1704768648441,-2372.33614082,0.00036359,2]
[310883230,1704768648450,-2372.33614082,0.00036359,2]
[310883231,1704768648460,-2372.33614082,0.00036359,2]
[310883232,1704768648469,-2372.33614082,0.00036359,2]
[310883233,1704768648478,-624.6342044,0.00036359,7]
[310883234,1704768648487,-954.16052084,0.00036359,7]
[310883235,1704768648497,-2013.31312975,0.00036359,7]
[310883236,1704768648507,-4450.36044221,0.00036359,4]
[310883237,1704768648517,-282.50801309,0.00036359,3]
[310883238,1704768648527,-280.05569909,0.00036359,15]
[310883239,1704768648537,-176.5259204,0.00036359,4]
[310883240,1704768648546,-229.93678728,0.00036359,4]
[310883241,1704768648555,-384.93679232,0.00036359,20]
[310883242,1704768648565,-583.61040595,0.00036359,4]
[310883243,1704768648574,-7397.79801423,0.00036359,7]
[310883244,1704768648583,-640.55094873,0.0003636,4]
[310883245,1704768648592,-15784.07351249,0.0003636,4]
[310883246,1704768648601,-230.95656664,0.0003636,4]
[310883247,1704768648610,-261.20103296,0.0003636,4]
[310883248,1704768648619,-272.96331779,0.0003636,4]
[310883249,1704768648631,-155.10586792,0.00036361,4]
[310883250,1704768648640,-157.03208602,0.00036361,4]
[310883251,1704768648649,-230.5019379,0.00036361,30]
[310883252,1704768648657,-309.33555105,0.00036361,4]
[310883253,1704768648666,-199.286319,0.00036361,2]
[310883254,1704768648676,-199.286319,0.00036361,2]
[310883255,1704768648686,-151.0,0.00036362,2]
[310883256,1704768648696,-40473.61505096,0.00036362,7]
[310883257,1704768648705,-300.0,0.000364,18]
[310883258,1704768648715,-231.07224299,0.00036436,4]
[310883259,1704768648724,-389.38884407,0.00036436,4]
[310883260,1704768648733,-792.3636477,0.00036436,4]
[310883261,1704768648743,-446.33936009,0.00036436,4]
[310883262,1704768648752,-208.00198312,0.00036436,2]
[310883263,1704768648761,-272.66378367,0.00036436,4]
[310883264,1704768648770,-216.74327556,0.00036437,10]
[310883265,1704768648779,-266.97800187,0.00036437,4]
[310883266,1704768648789,-500.0,0.00036438,2]
[310883267,1704768648799,-500.0,0.00036438,2]
[310883268,1704768648810,-500.0,0.00036438,2]
[310883269,1704768648820,-500.0,0.00036438,2]
[310883270,1704768648831,-500.0,0.00036438,2]
[310883271,1704768648840,-500.0,0.00036438,2]
[310883272,1704768648849,-500.0,0.00036438,2]
[310883273,1704768648859,-500.0,0.00036438,2]
[310883274,1704768648868,-500.0,0.00036438,2]
[310883275,1704768648877,-500.0,0.00036438,2]
[310883276,1704768648886,-500.0,0.00036438,2]
[310883277,1704768648896,-500.0,0.00036438,2]
[310883278,1704768648905,-500.0,0.00036438,2]
[310883279,1704768648914,-404.11274882,0.00036438,2]
[310883280,1704768648923,-500.0,0.00036438,2]
[310883281,1704768648932,-500.0,0.00036438,2]
[310883282,1704768648942,-500.0,0.00036438,2]
[310883283,1704768648951,-542.23203126,0.00036438,2]
[310883284,1704768648960,-500.0,0.00036438,2]
[310883285,1704768648969,-500.0,0.00036438,2]
[310883286,1704768648979,-549.71,0.00036438,2]